Cogmind - Beta 14 @@@ ROGUE MODE // 2024.08.07 @ 20:32:33 Player: RedTheSorceress Result: System corrupted Performance ------------- Evolutions (0) 0 Regions Visited (5) 1000 Robots Destroyed (60) 300 Value Destroyed (1400) 1400 Prototype IDs (25) 500 Alien Tech Used (0) 0 Bonus (304) 304 TOTAL SCORE: 3504 Bonus ------- Follower Combat Kills 14 Registered with UFD 300 Friendly Fire -10 Cogmind --------- Core Integrity 0/250 Matter 300/300 Energy 265/265 System Corruption 148% Temperature Cool (0) Movement Rolling (195) Ox7 Location -9/Scraptown Parts ------- > --- POWER (1) -------- Improved Ion Engine > --- PROPULSION (2) --- Light Treads Armored Wheel > --- UTILITY (2) ------ Huge Storage Unit Signal Interpreter > --- WEAPON (2) ------- System Spiker Companion Sword > --- INVENTORY (25) --- Light Treads Light Treads Improved Treads Improved Treads Xenon Bombardment Thruster Makeshift Flight Unit Small Storage Unit Light Armor Plating Light Armor Plating Hardened Light Armor Plating Makeshift Light Armor Plating System Shield Scrapoid Pod Heavy Assault Rifle Heavy Assault Rifle Heavy Assault Rifle Rocket Launcher CPS Tube (2) CPS Tube (2) CPS Tube (2) Junk Cannon Katana Peak State ------------ > --- POWER ------------ Improved Ion Engine > --- PROPULSION ------- Light Treads Armored Wheel > --- UTILITY ---------- Huge Storage Unit Signal Interpreter > --- WEAPON ----------- System Spiker Companion Sword > --- INVENTORY -------- Light Treads Light Treads Improved Treads Improved Treads Xenon Bombardment Thruster Makeshift Flight Unit Small Storage Unit Light Armor Plating Light Armor Plating Hardened Light Armor Plating Makeshift Light Armor Plating System Shield Scrapoid Pod Heavy Assault Rifle Heavy Assault Rifle Heavy Assault Rifle Rocket Launcher CPS Tube CPS Tube CPS Tube Junk Cannon Katana [Rating: 30] Favorites ----------- Power Light Ion Engine Engine Light Ion Engine Propulsion Light Treads Treads Light Treads Leg Aluminum Leg Wheel Subdweller Monowheel Utility Huge Storage Unit Device Improved Terrain Scanner Storage Huge Storage Unit Processor Signal Interpreter Protection Hardened Light Armor Plating Weapon Powered Cannon Energy Gun Medium Laser Energy Cannon Powered Cannon Ballistic Gun Shotgun Launcher Rocket Launcher Special Weapon Mining Laser Slashing Weapon Companion Sword Build | -11 -10 -10 -10 -9 -9 ------- Run | Yrd Mat Min Sub Rec Scr Slots Evolved . | . . . . . . Power . | . . . . . . Propulsion . | . . . . . . Utility . | . . . . . . Weapon . | . . . . . . Parts Attached 80 | 3 11 10 42 8 6 Power 8 | . 1 1 4 1 1 Engine 8 | . 1 1 4 1 1 Core . | . . . . . . Reactor . | . . . . . . Propulsion 14 | 2 . . 6 3 3 Treads 6 | 2 . . 2 2 . Leg . | . . . . . . Wheel 8 | . . . 4 1 3 Hover . | . . . . . . Flight . | . . . . . . Utility 10 | 1 4 1 3 1 . Device 1 | 1 . . . . . Storage 3 | . 3 . . . . Processor 1 | . . . . 1 . Hackware . | . . . . . . Protection 5 | . 1 1 3 . . Artifact . | . . . . . . Weapon 48 | . 6 8 29 3 2 Energy Gun 3 | . 1 . 2 . . Energy Cannon 1 | . . . . 1 . Ballistic Gun 24 | . 3 4 15 2 . Ballistic Cannon . | . . . . . . Launcher 11 | . 1 3 7 . . Special Weapon 8 | . 1 1 5 . 1 Impact Weapon . | . . . . . . Slashing Weapon 1 | . . . . . 1 Piercing Weapon . | . . . . . . Special Melee Weapon . | . . . . . . Unidentified Prototypes 1 | . . . . . 1 Parts Lost 11 | . . . 10 1 . Power . | . . . . . . Propulsion 5 | . . . 4 1 . Utility 3 | . . . 3 . . Weapon 3 | . . . 3 . . Highest Loss Streak 3 | . . . 3 1 . To Critical Strikes 1 | . . . 1 . . Average Slot Usage (%) 90 | . 100 100 99 80 75 Engine 13 | . 14 14 14 12 12 Treads 16 | . 28 28 9 9 12 Wheel 10 | . . . 18 15 12 Storage 13 | . 14 14 14 12 12 Processor 4 | . . . . 11 12 Protection 8 | . 13 14 14 1 . Energy Gun 3 | . 16 . 2 . . Energy Cannon 4 | . . . . 9 11 Ballistic Gun 11 | . 10 22 22 . . Launcher 2 | . . 4 2 5 . Peak Build Rating 30 | 9 11 12 18 24 30 Average Rating 17 | 7 8 11 14 22 25 On Entrance 13 | 6 9 11 12 17 24 Naked Turns . | . . . . . . Heaviest Build 98 | 14 93 95 98 98 96 Greatest Support 40 | 40 40 40 40 30 20 Greatest Overweight (x) 9 | . 2 2 9 4 7 Average Overweight (x) 3 | . . 2 3 3 5 Largest Inventory Capacity 25 | 8 25 25 25 25 25 Average Capacity 23 | 8 19 25 25 25 25 Most Carried 25 | 8 25 25 25 25 25 Average Carried 23 | 6 16 24 24 24 24 Final Capacity 25 | 8 25 25 25 25 25 Final Carried 25 | 8 25 25 25 25 24 Class Distribution -------------------- 100% | Mutant Dominant Class ---------------- Mutant | -10/Materials Mutant | -10/Mines Mutant | -10/Subcaves Mutant | -9/Recycling Mutant | -9/Scraptown Resources | -11 -10 -10 -10 -9 -9 ----------- Run | Yrd Mat Min Sub Rec Scr Matter Collected 1986 | 230 273 224 1060 139 60 Remotely . | . . . . . . Salvage Created 2095 | 85 428 326 723 463 70 Parts 113 | 6 18 14 39 31 5 Haulers Intercepted 2 | . 2 . . . . Recyclers Shooed 3 | 1 . 1 . 1 . Parts Field Recycled . | . . . . . . Retrieved Matter . | . . . . . . Parts Self-Destructed 10 | . . . 10 . . Prevented . | . . . . . . Kills | -11 -10 -10 -10 -9 -9 ------- Run | Yrd Mat Min Sub Rec Scr Combat Hostiles Destroyed 48 | . 9 14 22 2 1 Melee 1 | . . . . . 1 Guns 24 | . 7 2 14 1 . Cannons 1 | . . . . 1 . AOE 22 | . 2 12 8 . . Classes Destroyed 14 | 2 6 1 2 2 1 Worker 1 | . 1 . . . . Builder 3 | . . . . 3 . Tunneler 1 | 1 . . . . . Hauler 2 | . 2 . . . . Recycler 5 | 1 1 2 . 1 . Operator 1 | . 1 . . . . Turret 2 | . . . 2 . . Watcher 2 | . 2 . . . . Swarmer 17 | . 6 7 4 . . Grunt 5 | . 3 2 . . . Sentry 2 | . . . . 2 . Subdweller 18 | . . . 18 . . Scrapper 1 | . . . . . 1 Assembled 5 | . . 5 . . . Best Kill Streak 6 | 1 3 5 6 2 1 Combat Bots Only 5 | . 3 5 4 1 1 Max Kills in Single Turn 2 | 1 2 2 2 1 1 Gunslinging . | . . . . . . Exploded 2 | . 1 2 2 . . Melee 1 | . . . . . 1 Uniques/NPCs Destroyed . | . . . . . . Combat | -11 -10 -10 -10 -9 -9 -------- Run | Yrd Mat Min Sub Rec Scr Hostile Shots Fired 183 | . 36 11 122 6 8 Missed 54 | . 7 4 38 2 3 Damage Taken 2403 | . 322 73 1843 60 105 Core 248 | . 12 11 207 . 18 Absorbed by Shields . | . . . . . . Core Remaining (%) 100 | 100 . . . . . Volleys Fired 230 | 13 45 24 109 36 3 Largest 2 | 2 2 2 2 2 1 Hottest 100 | 90 100 100 100 53 . Shots Fired 385 | 26 86 37 195 38 3 Gun 301 | 26 82 28 161 4 . Cannon 34 | . . . . 34 . Launcher 29 | . 2 7 20 . . Special 21 | . 2 2 14 . 3 Kinetic 181 | . 21 28 128 4 . Thermal 172 | 26 63 2 47 34 . Explosive 29 | . 2 7 20 . . Electromagnetic . | . . . . . . Robot Hit Streak 25 | 4 9 16 25 15 2 Robot Miss Streak 6 | 6 4 2 2 1 1 Penetration Max . | . . . . . . Secondary Targets . | . . . . . . Shots Hit Robots 252 | 13 49 23 148 13 6 Core Hits 123 | 3 26 31 53 9 1 Critical Kills 1 | . . . . 1 . Critical Parts Destroyed . | . . . . . . Critical Strikes 7 | . 4 . 2 1 . Burn 6 | . 4 . 2 . . Meltdown 1 | . . . . 1 . Melee Attacks 5 | . . . . . 5 Impact . | . . . . . . Slashing 5 | . . . . . 5 Piercing . | . . . . . . Sneak Attacks 4 | . . . . . 4 Combat Hostiles 4 | . . . . . 4 Follow-up Attacks . | . . . . . . Damage Inflicted 5791 | 167 790 979 2964 573 318 Guns 3238 | 167 617 284 2119 51 . Cannons 522 | . . . . 522 . Explosions 1706 | . 166 695 845 . . Melee 318 | . . . . . 318 Ramming 7 | . 7 . . . . Kinetic 2179 | . 166 284 1678 51 . Thermal 1581 | 167 451 . 441 522 . Explosive 1706 | . 166 695 845 . . Electromagnetic . | . . . . . . Impact . | . . . . . . Slashing 318 | . . . . . 318 Piercing . | . . . . . . Highest Corruption 148 | . . . . . 148 Average Corruption 60 | . . . . . 60 Corruption Purged . | . . . . . . Corruption Blocked . | . . . . . . Effects 3 | . . . . . 3 Message Errors 1 | . . . . . 1 Data Loss (minor) 1 | . . . . . 1 Misdirections 1 | . . . . . 1 Overload Shots . | . . . . . . Overflow Damage 113 | . . . 68 25 20 Projectiles 25 | . . . . 25 . Explosions 68 | . . . 68 . . Melee 20 | . . . . . 20 Knockbacks . | . . . . . . Impact . | . . . . . . Kinetic . | . . . . . . Secondary . | . . . . . . Self-Inflicted Damage . | . . . . . . Shots . | . . . . . . Rammed 3 | . 1 1 . 1 . Targets Rammed 4 | . 2 1 . 1 . Kicked . | . . . . . . Crushed 1 | . 1 . . . . Highest Temperature 257 | 240 195 80 257 20 18 Average Temperature 57 | 98 53 18 97 18 18 Received Heat Transfer 903 | . 84 24 692 18 85 Effects 1 | 1 . . . . . Energy Bleed 1 | 1 . . . . . Siege Activations . | . . . . . . Robots Corrupted . | . . . . . . Combat Hostiles . | . . . . . . Parts Fried . | . . . . . . Impact Corruptions . | . . . . . . Robots Melted 1 | . . . . 1 . Combat Hostiles . | . . . . . . Parts Melted 2 | . 1 . . 1 . Heat Transferred 3139 | 434 1521 . 1184 . . Parts Sabotaged . | . . . . . . Parts Stolen . | . . . . . . Parts Stripped . | . . . . . . Power Chain Reactions . | . . . . . . Alert | -11 -10 -10 -10 -9 -9 ------- Run | Yrd Mat Min Sub Rec Scr Peak Influence 249 | 10 213 249 . 61 . Initial 6 | . 6 5 . . . Average 35 | 6 36 48 . 18 . Maximum Alert Level 1 | . 1 1 . . . Low Security (%) 97 | 100 99 93 . 100 . Level 1 2 | . . 6 . . . Level 2 . | . . . . . . Level 3 . | . . . . . . Level 4 . | . . . . . . Level 5 . | . . . . . . High Security . | . . . . . . Max Security . | . . . . . . Squads Dispatched 1 | . 1 . . . . Investigation . | . . . . . . Extermination . | . . . . . . Reinforcement 1 | . 1 . . . . Assault . | . . . . . . Garrison . | . . . . . . Intercept . | . . . . . . Searches Triggered . | . . . . . . Construction Impeded . | . . . . . . Haulers Reinforced . | . . . . . . Active Scanning Responses . | . . . . . . Cargo Convoy Interrupts . | . . . . . . Stealth | -11 -10 -10 -10 -9 -9 --------- Run | Yrd Mat Min Sub Rec Scr Distress Signals 1 | . 1 . . . . Communications Jammed . | . . . . . . Distress Signals . | . . . . . . Times Spotted 68 | . 21 15 25 2 5 Peak Tracking Total 11 | . 3 11 4 1 3 Tactical Retreats 4 | . 2 . 2 . . Traps | -11 -10 -10 -10 -9 -9 ------- Run | Yrd Mat Min Sub Rec Scr Traps Triggered 2 | . 1 . 1 . . Indirectly . | . . . . . . Trap Hack Attempts . | . . . . . . Triggered . | . . . . . . Disarmed . | . . . . . . Reprogrammed . | . . . . . . Reused . | . . . . . . Traps Extracted . | . . . . . . Installed . | . . . . . . Triggered . | . . . . . . Machines | -11 -10 -10 -10 -9 -9 ---------- Run | Yrd Mat Min Sub Rec Scr Machines Disabled 7 | . . . 5 1 1 Max in Single Turn 2 | . . . 2 1 1 Machines Repaired . | . . . . . . Machines Dismantled . | . . . . . . Machines Sabotaged . | . . . . . . Overloaded Fab Kills . | . . . . . . Hacking | -11 -10 -10 -10 -9 -9 --------- Run | Yrd Mat Min Sub Rec Scr Machines Accessed 29 | . 8 1 3 10 7 Terminals 13 | . 6 1 . 6 . Fabricators . | . . . . . . Repair Stations 1 | . 1 . . . . Recycling Units 3 | . 1 . . 2 . Scanalyzers . | . . . . . . Garrison Access . | . . . . . . Total Hacks 114 | . 25 5 12 43 29 Successful 87 | . 14 2 12 30 29 Failed 26 | . 10 3 . 13 . Catastrophic 3 | . 1 1 . 1 . Database Lockouts 1 | . 1 . . . . Manual 24 | . 11 5 . 8 . Terminals 40 | . 21 5 . 14 . Fabricators . | . . . . . . Repair Stations 2 | . 2 . . . . Recycling Units 6 | . 2 . . 4 . Scanalyzers . | . . . . . . Garrison Access . | . . . . . . Terminal Hacks 78 | . 7 2 12 28 29 Record 60 | . . . 9 24 27 Robot Analysis 3 | . 2 1 . . . Prototype ID Bank 4 | . 2 1 . 1 . Open Door 2 | . . . 1 . 1 Branch Access Points 1 | . . . . 1 . Alert Level 1 | . . . . 1 . Unreport Threat 1 | . 1 . . . . Locate Traps 1 | . 1 . . . . Hauler Manifests 1 | . 1 . . . . Derelict Proto ID Bank 2 | . . . 1 . 1 Release Object 2 | . . . 1 1 . Fabricator Hacks . | . . . . . . Repair Station Hacks 1 | . 1 . . . . Scan Component 1 | . 1 . . . . Recycling Unit Hacks 2 | . 1 . . 1 . Retrieve Components 2 | . 1 . . 1 . Scanalyzer . | . . . . . . Garrison Access Hacks . | . . . . . . Unauthorized Hacks 6 | . 5 . . 1 . Terminals 5 | . 5 . . . . Track 1 | . 1 . . . . Botnet 3 | . 3 . . . . Operators 1 | . 1 . . . . Fabricators . | . . . . . . Repair Stations . | . . . . . . Recycling Units 1 | . . . . 1 . Recyclers 1 | . . . . 1 . Scanalyzers . | . . . . . . Garrison Access . | . . . . . . Data Cores Recovered . | . . . . . . Used . | . . . . . . Hacking Detections 17 | . 8 1 . 8 . Full Trace Events 1 | . . . . 1 . Feedback Events . | . . . . . . Feedback Blocked . | . . . . . . Robot Schematics Acquired . | . . . . . . Robots Built . | . . . . . . Authchips . | . . . . . . Time . | . . . . . . Total Robot Build Rating . | . . . . . . Part Schematics Acquired . | . . . . . . Parts Built . | . . . . . . Authchips . | . . . . . . Time . | . . . . . . Total Part Build Rating . | . . . . . . Parts Repaired . | . . . . . . Time . | . . . . . . Parts Recycled . | . . . . . . Recycled Matter . | . . . . . . Retrieved Matter . | . . . . . . Retrieved Components 9 | . 8 . . 1 . Parts Scanalyzed . | . . . . . . Part Schematics Acquired . | . . . . . . Parts Damaged . | . . . . . . Bothacking | -11 -10 -10 -10 -9 -9 ------------ Run | Yrd Mat Min Sub Rec Scr Used RIF Installer . | . . . . . . Robots Hacked . | . . . . . . Non-combat . | . . . . . . Combat . | . . . . . . Robot Hacks Applied . | . . . . . . Relay Couplers Released . | . . . . . . Fabnet Peak Effective % . | . . . . . . Robots Rewired . | . . . . . . Allies Hacked . | . . . . . . Hacks Repelled . | . . . . . . Allies | -11 -10 -10 -10 -9 -9 -------- Run | Yrd Mat Min Sub Rec Scr Total Allies 3 | . . 3 . . . Largest Group 3 | . . 3 1 . . Highest-Rated Group 40 | . . 40 16 . . Highest-Rated Ally 16 | . . 16 16 . . Total Orders . | . . . . . . Ally Attacks 23 | . . 21 2 . . Total Damage 195 | . . 163 32 . . Kills 4 | . . 4 . . . Allies Corrupted . | . . . . . . Allies Melted . | . . . . . . Intel | -11 -10 -10 -10 -9 -9 ------- Run | Yrd Mat Min Sub Rec Scr Robot Analysis Total 3 | . 2 1 . . . Derelict Logs Recovered 6 | . . 1 2 . 3 Drone Launches . | . . . . . . Drone Recoveries . | . . . . . . Exploration | -11 -10 -10 -10 -9 -9 ------------- Run | Yrd Mat Min Sub Rec Scr Turns Passed 11120 | 95 1991 1595 3013 1371 3055 Spaces Moved 5289 | 34 739 462 1440 849 1765 Core . | . . . . . . Treads 1437 | 14 739 462 222 . . Legs 20 | 20 . . . . . Wheels 3832 | . . . 1218 849 1765 Hover . | . . . . . . Flight . | . . . . . . Fastest Speed 120 | 120 160 320 131 131 150 Average Speed 188 | 136 235 320 172 145 170 Slowest Speed 320 | 160 320 320 320 150 195 Overloaded Moves . | . . . . . . Propulsion Burnouts . | . . . . . . Robots Hopped . | . . . . . . Cave-ins Triggered . | . . . . . . Exploration Rate (%) 78 | 4 99 80 94 99 95 Regions Visited 5 Branch Regions 4 Pre-discovered Areas 2 | . . . 2 . . Known Exits Taken 1 | . . . . 1 . Unknown Exits Taken 4 | 1 1 1 1 . . Scrap Searched 17 | . . 1 10 . 6 Spaces Dug 21 | . 2 2 . 17 . Terrain Destroyed 213 | . 17 74 99 23 . Melee . | . . . . . . Projectile 27 | . 2 2 . 23 . AOE 186 | . 15 72 99 . . Terrain Rammed . | . . . . . . Walls Destroyed . | . . . . . . Machines Disabled . | . . . . . . Actions | -11 -10 -10 -10 -9 -9 --------- Run | Yrd Mat Min Sub Rec Scr Total 6003 | 57 897 536 1744 953 1816 Wait 251 | 2 59 29 111 45 5 Move 5284 | 33 738 461 1439 848 1765 Hop . | . . . . . . Pick Up 81 | 4 27 5 24 7 14 Fast Attach 5 | 1 2 . . 1 1 Attach 19 | 2 1 1 11 2 2 Detach . | . . . . . . Swap 56 | . 8 9 31 5 3 Drop 66 | 2 15 6 18 7 18 Fire 230 | 13 45 24 109 36 3 Melee 5 | . . . . . 5 Ram . | . . . . . . Kick . | . . . . . . Crush 4 | . 2 1 . 1 . Escape Stasis . | . . . . . . Rewire 1 | . . . . 1 . Trap . | . . . . . . Miscellaneous 1 | . . . 1 . . Route ------- -11/Scrapyard -10/Materials (discovered 6 exits: [*Mat x3] / *Min x2 / *Sub) -10/Mines (discovered 4 exits: [*Mat x2] / [*Exi] / *Sub) -10/Subcaves (discovered 3 exits: [*Mat x2] / *Rec) -9/Recycling (discovered 2 exits: *Fac / *Scr) -9/Scraptown (discovered 2 exits: *Fac x2) History --------- Turn | Location | Event 26 | -11/Scrapyard | Discovered new exit (range 3) 96 | -11/Scrapyard | Entered Materials 239 | -10/Materials | Discovered new exit (range 15) 305 | -10/Materials | Build established: Mutant 423 | -10/Materials | Discovered new exit (range 7) 430 | -10/Materials | Discovered new exit (range 10) 657 | -10/Materials | Discovered new exit (range 14) 819 | -10/Materials | Central database locked down 1095 | -10/Materials | Discovered new exit (range 15) 1908 | -10/Materials | Discovered new exit (range 10) 2087 | -10/Materials | Entered Mines 2170 | -10/Mines | Received a Rocket Launcher from a helpful Derelict 2244 | -10/Mines | Learned location of 1 exit from Materials 2276 | -10/Mines | Assisted by bots powering up and referring to "LRC-V3" 2615 | -10/Mines | Discovered new exit (range 14) 2784 | -10/Mines | Discovered new exit (range 11) 2956 | -10/Mines | Discovered new exit (range 6) 3301 | -10/Mines | Deemed a non-threat by the Exiles lab entrance 3301 | -10/Mines | Discovered new exit (range 5) 3347 | -10/Mines | Assembled infested the area 3682 | -10/Mines | Entered Subcaves 3682 | -10/Subcaves | Accompanied by 1 ally 3889 | -10/Subcaves | A swath of the cavern ceiling suddenly collapsed 4312 | -10/Subcaves | Discovered new exit (range 9) 4321 | -10/Subcaves | Shifting Twisted Machinery released Sub. Laser 4324 | -10/Subcaves | Shifting Twisted Machinery released Sub. Laser 4623 | -10/Subcaves | Lost 3 parts (2n1w) 4951 | -10/Subcaves | Learned Materials garrison access intel 5101 | -10/Subcaves | Ambushed by Subdweller buried in earth 5137 | -10/Subcaves | A swath of the cavern ceiling suddenly collapsed 5178 | -10/Subcaves | Disturbed a concealed Subdweller 5182 | -10/Subcaves | Core integrity fell below 50% 5251 | -10/Subcaves | Discovered new exit (range 11) 5357 | -10/Subcaves | Learned location of Zion (-7) 5357 | -10/Subcaves | Met a Zionite searching for "candidates" 5364 | -10/Subcaves | Discovered new exit (range 11) 6346 | -10/Subcaves | Shifting Twisted Machinery released Riot Gun 6406 | -10/Subcaves | Released subatomizers from SUBCON Basin 6451 | -10/Subcaves | Ambushed by Subdwellers from Twisted Machinery 6453 | -10/Subcaves | Core integrity fell below 20% 6571 | -10/Subcaves | Visited 4L-MR0's lab 6594 | -10/Subcaves | Found Powered Cannon 6695 | -10/Subcaves | Entered Recycling 6696 | -9/Recycling | Met a Zionite searching for Scraptown 6696 | -9/Recycling | Joined Warlord attack on 0b10 via Recycling 6806 | -9/Recycling | Discovered new exit (range 8) 6828 | -9/Recycling | Identified exit to Factory 7005 | -9/Recycling | Attached Powered Cannon, gained temporary slot: Power 8015 | -9/Recycling | Scanned before Scraplab entrance 8036 | -9/Recycling | Entered Scraplab 8050 | -9/Recycling | Discovered new exit (range 4) 8065 | -9/Recycling | Identified exit to Scraptown 8066 | -9/Recycling | Entered Scraptown 8476 | -9/Scraptown | Discovered new exit (range 5) 8482 | -9/Scraptown | Identified exit to Factory 8610 | -9/Scraptown | Scanned Subdweller tech in exchange for log data 8614 | -9/Scraptown | Learned 12 Research zone layouts 8616 | -9/Scraptown | Learned Factory trap positions 8617 | -9/Scraptown | Learned 8 Research zone layouts 8680 | -9/Scraptown | Visited TADAMA 8701 | -9/Scraptown | Visited Awakened 8748 | -9/Scraptown | Visited UFD Registry 8748 | -9/Scraptown | Registered with UFD as "Railbank" 9323 | -9/Scraptown | Visited Assassins FH 9356 | -9/Scraptown | Visited Fellowship of the Rings 9398 | -9/Scraptown | Visited Symbiants 9441 | -9/Scraptown | Visited SPCMW 9489 | -9/Scraptown | Visited Shadow of the Wyrm 9607 | -9/Scraptown | Visited Science Testing Area 9638 | -9/Scraptown | Visited Research Penetration Think Tank 9681 | -9/Scraptown | Visited Scrapoid Pod Storage 9692 | -9/Scraptown | Found Scrapoid Pod 9732 | -9/Scraptown | Visited LU-1G1's Boring Crew 9857 | -9/Scraptown | Visited Scrap Suit Storage 9925 | -9/Scraptown | Visited DA-N13 Charitable Foundation 9943 | -9/Scraptown | Found DCF Scrap (29 items) 10021 | -9/Scraptown | Visited Science Guys 10122 | -9/Scraptown | Discovered exit to Factory (range 5) 10315 | -9/Scraptown | Visited Sword Containment 10358 | -9/Scraptown | Visited Junk Cannon Lab 10383 | -9/Scraptown | Found Prototype Special Weapon 11075 | -9/Scraptown | Attacked by Scraptown defenders 11082 | -9/Scraptown | Found System Spiker 11100 | -9/Scraptown | System corruption reached 10% 11102 | -9/Scraptown | System corruption reached 30% 11122 | -9/Scraptown | System corrupted Last Messages --------------- 11101_ SYS_ERR_328975498362890465 11101_ UB-XUW(j) slows to a halt. 11102_ J9TDZ:MPQHKERN6MZ#VPG3J7YHG 11109_ Sneak attack on RH-9KS(j). 11109_ Destroyed Ovr. Pulse Rifle. 11111_ Sneak attack on RH-9KS(j). Companion Sword: "Too slow, Scrapper!" 11114_ Sneak attack on RH-9KS(j). 11114_ RH-9KS(j) destroyed. 11116_ Acquired 20 matter. 11118_ System corrupted: Component data lost. 11118_ Sneak attack on UB-XUW(j). 11118_ PI-BKW(c) reactivates. 11119_ AY-H42(j) reactivates. 11120_ UB-XUW(j) reactivates. 11121_ UB-XUW(j) slows to a halt. 11121_ PI-BKW(c) slows to a halt. 11121_ AY-H42(j) slows to a halt. 11121_ SYS_ERR_328975498362890465 11122_ Cogmind system terminally corrupted. Map ----- +----------------------------------------------------+ | ?????????????????????????????????????????????????? | | ?????????????????????????????????????????????????? | | ?????????????????????????????#####???????????????? | | ?????????????????????????????#"""#???????????????? | | #################???####?????#" "#???????????????? | | "##"""##""|##"""#??## ##????# < #???????????????? | | ##"" ##""|##!!"#### ###### ##??????????????? | | #??????????????? | | #??????????????? | | #################### ###########??????????????? | | ???????????????????## ##????????????????????????? | | #########???????????# #############?????????????? | | #???????????# #"""""""""""#?????????????? | | #???????????# #""" X """""#?????????????? | | ] #?????#?????# #"""" """#?????????????? | | #?????"""" ## #"" " "#?????????????? | | ##"?? """"?# #""" """#?????????????? | | ## """ " ?# #"" """"#?????????????? | | ### ###### """"""??# #& c ""#?????????????? | | ### X###?# """ "?# #&" "" ""#?????????????? | | #?# ""## #&" "" ""#?????????????? | | #??? ## #" c #?????????????? | | #?????"""""??# # "#?????????????? | | ### ####??????# #???# ##!##########?????????????? | | ### ########### ##### ##!##########?????????????? | | """ """"""""""" """"" @"##==|* *#?????????????? | | jj"##* [%! #?????????????? | | *"##=!!/*=#?????????????? | | c "##!|[]###?????????????? | | "##!!]*###?????????????? | | *=!! #?????????????? | | """"""""""""""""""""" "##= [%! #?????????????? | | """"""""""""""""""""" "## #?????????????? | | # ################"" "#########?????????????? | | ##????????#"" "#############?????????? | | X"#????????#"" "## #"""""#""#?????????? | | " "" ##????????#"" "## !!!! !#?????????? | | "" X"#??????###"" "## #?????????? | | " ######### #"" "## #?????????? | | "" X" #?????????? | | "" "## ##"#?????????? | | " ######### #"" "## !!!! #????????????? | | "" ""#??????###"" "## #"""""#????????????? | | " "" ##????????#"" "##########????????????? | | ""#????????#"" "#?????????????????????? | | ##????????#"" "#?????????????????????? | | # ################"" "#############?????????? | | """"""""""""""""""""" "## #?????????? | | """"""""""""""""""""" #### #####?????????? | | "## # #?????????? | +----------------------------------------------------+ Best States ------------- Heat Dissipation 25 Energy Generation 15 Energy Capacity 265 Matter Stores 300 Matter Capacity 300 Sight Range 16 Terrain Scan Range 16 Terrain Scan Density 10 Armor Coverage 150 Evasion (%) 55 Recoil Reduction 2 Item Schematics ----------------- None Robot Schematics ------------------ None Fabricated ------------ Nothing Alien Tech Used ----------------- None Achievements -------------- None Challenges ------------ None Game ------ Seed CentriumTrackerLink Manual? 0 Play Time 01:51:54 Cumulative 791.2 hours Start 2024.08.07 @ 16:06:19 End 2024.08.07 @ 20:32:33 Sessions 3 Manual Loads 0 Difficulty Rogue Special Mode None Game No. 522 Rogue 522 Adventurer 0 Explorer 0 Win Type - Total 113 Types 77/7/8/10/5/1/4/0/1 Lore% 63 Gallery% 79 Achievement% 82 Wizard Run 0 Options --------- Layout 1 ASCII 0 Keyboard 0 Movement Numpad Keybinds 0 Fullscreen 1 Font 24/Smallcaps Map View 50x35 Zoom Use 0% Tactical HUD 1 Map Filters NONE Filters NONE Steam 1 RUN: 05b075e3-6f11-4aac-a451-708c943a8023